fUST/lending_fUST_20250724
["ID","MTS","AMOUNT","RATE_DAILY","PERIOD"]
[374560766,1753354244027,-460.0,0.00020821,2]
[374560767,1753354244036,-405.67184434,0.00020873,2]
[374560768,1753354244046,-544.186,0.00020891,2]
[374560769,1753354244056,-420.0,0.00020898,2]
[374560770,1753354244066,-500.0,0.00020899,2]
[374560771,1753354244076,-771.31746054,0.00020934,4]
[374560772,1753354244087,-5909.1535626,0.00020995,2]
[374560773,1753354244097,-360.0,0.00020998,2]
[374560774,1753354244107,-500.0,0.00021064,2]
[374560775,1753354244117,-336.4,0.00021086,3]
[374560776,1753354244127,-460.0,0.00021094,2]
[374560777,1753354244140,-460.0,0.00021094,2]
[374560778,1753354244150,-460.0,0.00021094,2]
[374560779,1753354244160,-489.98,0.00021094,2]
[374560780,1753354244170,-2181.09,0.00021094,2]
[374560781,1753354244179,-460.0,0.00021094,2]
[374560782,1753354244188,-463.16,0.00021094,2]
[374560783,1753354244199,-489.0,0.00021095,2]
[374560784,1753354244209,-460.0,0.00021095,2]
[374560785,1753354244219,-460.0,0.00021095,2]
[374560786,1753354244229,-460.0,0.00021095,2]
[374560787,1753354244240,-589.59,0.00021095,2]
[374560788,1753354244250,-1713.2,0.00021095,2]
[374560789,1753354244260,-460.0,0.00021095,2]
[374560790,1753354244271,-1517.68,0.00021095,2]
[374560791,1753354244281,-515.63,0.00021095,2]
[374560792,1753354244291,-524.52,0.00021095,2]
[374560793,1753354244301,-460.0,0.00021095,2]
[374560794,1753354244311,-460.0,0.00021095,2]
[374560795,1753354244322,-460.0,0.00021095,2]
[374560796,1753354244332,-202.90055425,0.00021095,2]
[374560797,1753354244343,-590.78426585,0.00021095,2]
[374560798,1753354244352,-460.0,0.00021095,2]
[374560799,1753354244362,-616.76,0.00021095,2]
[374560800,1753354244371,-546.76,0.00021095,2]
[374560801,1753354244381,-515.48,0.00021095,2]
[374560802,1753354244393,-428.76098236,0.00021095,2]
[374560803,1753354244403,-2406.82,0.00021095,2]
[374560804,1753354244413,-460.0,0.00021095,2]
[374560805,1753354244424,-1284.52,0.00021095,2]
[374560806,1753354244433,-460.0,0.00021095,2]
[374560807,1753354244446,-460.0,0.00021095,2]
[374560808,1753354244456,-767.26,0.00021095,2]
[374560809,1753354244466,-1140.07,0.00021095,2]
[374560810,1753354244476,-460.0,0.00021095,2]
[374560811,1753354244486,-460.0,0.00021095,2]
[374560812,1753354244496,-771.31746054,0.00021141,4]
[374560813,1753354244505,-771.31746054,0.00021348,5]
[374560814,1753354244515,-500.0,0.00021367,2]
[374560815,1753354244524,-460.0,0.00021368,2]
[374560816,1753354244534,-460.0,0.00021368,2]
[374560817,1753354244543,-212.09911825,0.00021368,2]
[374560818,1753354244591,-247.90088175,0.00021368,2]
[374560819,1753354244601,-489.98,0.00021368,2]
[374560820,1753354244611,-803.17363478,0.00021368,2]
[374560821,1753354244623,-356.70346337,0.00021368,2]
[374560822,1753354244640,-1021.21290185,0.00021368,2]
[374560823,1753354244650,-460.0,0.00021368,2]
[374560824,1753354244660,-463.16,0.00021368,2]
[374560825,1753354244670,-489.0,0.00021369,2]
[374560826,1753354244680,-460.0,0.00021369,2]
[374560827,1753354244690,-187.52707964,0.00021369,2]
[374560828,1753354244702,-272.47292036,0.00021369,2]
[374560829,1753354244713,-528.77,0.00021369,2]
[374560830,1753354244724,-589.59,0.00021369,2]
[374560831,1753354244739,-1713.2,0.00021369,2]
[374560832,1753354244749,-479.52149875,0.00021369,2]
[374560833,1753354244760,-1517.68,0.00021369,2]
[374560834,1753354244770,-515.63,0.00021369,2]
[374560835,1753354244781,-524.52,0.00021369,2]
[374560836,1753354244790,-259.91704336,0.00021369,2]
[374560837,1753354244803,-200.08295664,0.00021369,2]
[374560838,1753354244813,-281.14,0.00021369,2]
[374560839,1753354244823,-460.0,0.00021369,2]
[374560840,1753354244832,-460.0,0.00021369,2]
[374560841,1753354244842,-616.76,0.00021369,2]
[374560842,1753354244852,-515.48,0.00021369,2]
[374560843,1753354244862,-2406.82,0.00021369,2]
[374560844,1753354244873,-1284.52,0.00021369,2]
[374560845,1753354244883,-460.0,0.00021369,2]
[374560846,1753354244896,-460.0,0.00021369,2]
[374560847,1753354244906,-767.26,0.00021369,2]
[374560848,1753354244915,-1140.07,0.00021369,2]
[374560849,1753354244925,-315.04,0.00021369,2]
[374560850,1753354244935,-460.0,0.00021369,2]
[374560851,1753354244944,-40.70625882,0.00021469,2]
[374560852,1753354244956,-283.85756455,0.00021469,2]
[374560853,1753354245046,-424.2059313,0.00019178,2]
[374560854,1753354245057,-35.7940687,0.00019178,2]
[374560855,1753354245067,-460.0,0.00019178,2]
[374560856,1753354245078,-460.0,0.00019452,2]
[374560857,1753354245088,-178.17639664,0.00021469,2]
[374560858,1753354245099,-500.0,0.00021469,2]
[374560859,1753354245109,-500.0,0.00021519,2]
[374560860,1753354245119,-771.31746054,0.00021555,5]
[374560861,1753354245128,-460.0,0.00021642,2]
[374560862,1753354245138,-460.0,0.00021642,2]
[374560863,1753354245149,-460.0,0.00021642,2]
[374560864,1753354245159,-489.98,0.00021642,2]
[374560865,1753354245168,-2181.09,0.00021642,2]
[374560866,1753354245178,-460.0,0.00021642,2]
[374560867,1753354245187,-500.0,0.00021642,2]
[374560868,1753354245197,-463.16,0.00021642,2]
[374560869,1753354245207,-151.0,0.00021643,2]
[374560870,1753354245217,-151.0,0.00021643,2]
[374560871,1753354245227,-244.037643,0.00021643,2]
[374560872,1753354245237,-244.037643,0.00021643,2]
[374560873,1753354245246,-151.0,0.00021643,2]
[374560874,1753354245256,-489.0,0.00021643,2]
[374560875,1753354245265,-460.0,0.00021643,2]
[374560876,1753354245277,-541.34,0.00021643,2]
[374560877,1753354245287,-1713.2,0.00021643,2]
[374560878,1753354245296,-1517.68,0.00021643,2]
[374560879,1753354245306,-515.63,0.00021643,2]
[374560880,1753354245315,-524.52,0.00021643,2]
[374560881,1753354245325,-460.0,0.00021643,2]
[374560882,1753354245335,-460.0,0.00021643,2]
[374560883,1753354245344,-460.0,0.00021643,2]
[374560884,1753354245354,-616.76,0.00021643,2]
[374560885,1753354245363,-515.48,0.00021643,2]
[374560886,1753354245374,-2406.82,0.00021643,2]
[374560887,1753354245384,-1284.52,0.00021643,2]
[374560888,1753354245399,-460.0,0.00021643,2]
[374560889,1753354245408,-509.27198149,0.00021643,2]
[374560890,1753354245418,-767.26,0.00021643,2]
[374560891,1753354245428,-1140.07,0.00021643,2]
[374560892,1753354245439,-460.0,0.00021643,2]
[374560893,1753354245449,-771.31746054,0.00021762,5]
[374560894,1753354245459,-405.67184434,0.0002177,2]
[374560895,1753354245469,-1000.0,0.000218,2]
[374560896,1753354245479,-460.0,0.00021916,2]
[374560897,1753354245490,-460.0,0.00021916,2]
[374560898,1753354245499,-489.98,0.00021916,2]
[374560899,1753354245509,-2181.09,0.00021916,2]
[374560900,1753354245519,-460.0,0.00021916,2]
[374560901,1753354245529,-500.0,0.00021916,2]
[374560902,1753354245539,-463.16,0.00021916,2]
[374560903,1753354245548,-151.0,0.00021917,2]
[374560904,1753354245558,-151.0,0.00021917,2]
[374560905,1753354245568,-151.0,0.00021917,2]
[374560906,1753354245577,-461.110049,0.00021917,2]
[374560907,1753354245586,-461.110049,0.00021917,2]
[374560908,1753354245596,-151.0,0.00021917,2]
[374560909,1753354245605,-489.0,0.00021917,2]
[374560910,1753354245614,-1713.2,0.00021917,2]
[374560911,1753354245624,-1517.68,0.00021917,2]
[374560912,1753354245633,-515.63,0.00021917,2]
[374560913,1753354245645,-524.52,0.00021917,2]
[374560914,1753354245654,-460.0,0.00021917,2]
[374560915,1753354245664,-460.0,0.00021917,2]
[374560916,1753354245674,-460.0,0.00021917,2]
[374560917,1753354245684,-616.76,0.00021917,2]
[374560918,1753354245694,-515.48,0.00021917,2]
[374560919,1753354245704,-2406.82,0.00021917,2]
[374560920,1753354245713,-1284.52,0.00021917,2]
[374560921,1753354245723,-460.0,0.00021917,2]
[374560922,1753354245732,-767.26,0.00021917,2]
[374560923,1753354245741,-1140.07,0.00021917,2]
[374560924,1753354245751,-460.0,0.00021917,2]
[374560925,1753354245761,-150.0,0.00021918,2]
[374560926,1753354245771,-771.31746054,0.00021969,6]
[374560927,1753354245780,-7462.5,0.00022,7]
[374560928,1753354245790,-176.0,0.00022,2]
[374560929,1753354245799,-2784.6397749,0.00022,2]
[374560930,1753354245809,-163.0,0.00022,2]
[374560931,1753354245819,-1376.66,0.00022,7]
[374560932,1753354245828,-500.0,0.00022017,2]
[374560933,1753354245839,-354.56381647,0.00022032,2]
[374560934,1753354245848,-502.09093911,0.00022032,2]
[374560935,1753354245858,-1000.0,0.00022067,2]
[374560936,1753354245868,-771.31746054,0.00022176,6]
[374560937,1753354245877,-500.0,0.00022189,2]
[374560938,1753354245885,-276.73876937,0.0002219,2]
[374560939,1753354245899,-460.0,0.0002219,2]
[374560940,1753354245909,-489.98,0.0002219,2]
[374560941,1753354245919,-2181.09,0.0002219,2]
[374560942,1753354245929,-463.16,0.0002219,2]
[374560943,1753354245939,-489.0,0.00022191,2]
[374560944,1753354245949,-1517.68,0.00022191,2]
[374560945,1753354245959,-515.63,0.00022191,2]
[374560948,1753354245999,-524.52,0.00022191,2]
[374560949,1753354246009,-460.0,0.00022191,2]
[374560950,1753354246018,-335.76547247,0.00022191,2]
[374560952,1753354246028,-460.0,0.00022191,2]
[374560953,1753354246037,-616.76,0.00022191,2]
[374560954,1753354246046,-515.48,0.00022191,2]
[374560955,1753354246055,-2406.82,0.00022191,2]
[374560956,1753354246066,-1284.52,0.00022191,2]
[374560957,1753354246076,-460.0,0.00022191,2]
[374560958,1753354246087,-767.26,0.00022191,2]
[374560959,1753354246096,-1140.07,0.00022191,2]
[374560960,1753354246106,-460.0,0.00022191,2]
[374560961,1753354246116,-500.0,0.00022192,2]
[374560962,1753354246126,-500.0,0.00022192,2]
[374560963,1753354246136,-306.53000226,0.00022192,2]
[374560964,1753354246153,-193.46999774,0.00022192,2]
[374560965,1753354246162,-151.0,0.00022193,5]
[374560966,1753354246172,-1077.25,0.000222,7]
[374560967,1753354246182,-500.0,0.00022283,2]
[374560968,1753354246191,-1000.0,0.000223,2]
[374560969,1753354246200,-215.0738,0.00022318,2]
[374560970,1753354246210,-151.0,0.00022318,2]
[374560971,1753354246220,-151.0,0.00022318,2]
[374560972,1753354246230,-151.0,0.00022318,2]
[374560973,1753354246239,-78.36811726,0.00022352,2]
[374560974,1753354246250,-421.63188274,0.00022352,2]
[374560975,1753354246260,-38.36811726,0.00022352,2]
[374560979,1753354246485,-263.58761849,0.00019452,2]
[374560981,1753354246651,-460.0,0.00019178,2]
[374560982,1753354246661,-196.41238151,0.00019452,2]
[374560983,1753354246671,-460.0,0.00019726,2]
[374560984,1753354246680,-340.9,0.00019726,2]
[374560985,1753354246690,-504.62,0.00020273,2]
[374560986,1753354246700,-504.62,0.00020547,2]
[374560987,1753354246710,-504.62,0.00020821,2]
[374560988,1753354246720,-504.62,0.00021095,2]
[374560989,1753354246730,-504.62,0.00021369,2]
[374560990,1753354246740,-504.62,0.00021643,2]
[374560991,1753354246752,-504.62,0.00021917,2]
[374560992,1753354246761,-504.62,0.00022191,2]
[374560993,1753354246771,-140251.40577831,0.000222,2]
[374560994,1753354246786,-18788.2994569,0.000222,2]
[374560996,1753354251337,1850.52584111,0.00025459,120]
[374560997,1753354275985,150.0,0.0001457,2]
[374561006,1753354698075,10000.0,0.00026027,120]
[374561007,1753354706050,159.372972,0.00013699,2]
[374561009,1753354830772,10000.0,0.0001811,2]
[374561010,1753354854937,10000.0,0.0001811,10]
[374561011,1753354878531,8000.0,0.0001811,2]
[374561016,1753355152752,-1462.87586335,0.00018137,2]
[374561017,1753355198673,500.0,0.0001811,2]
[374561018,1753355235076,-1509.46620135,0.00018137,2]
[374561019,1753355235096,-210.80178908,0.00019076,2]
[374561020,1753355235116,-210.80178908,0.00019076,2]
[374561021,1753355235136,-210.80178908,0.00019077,2]
[374561022,1753355235158,-210.80178908,0.00019078,2]
[374561023,1753355235179,-210.80178908,0.00019078,2]
[374561024,1753355235201,-68.32307428,0.00019176,2]
[374561025,1753355250139,-793.50596465,0.00019176,2]
[374561074,1753355431907,-200.0,0.000185,2]
[374561075,1753355431918,-647.0,0.00019176,2]
[374561076,1753355431928,-300.0,0.00019177,2]
[374561077,1753355431937,-300.0,0.00019177,2]
[374561078,1753355431947,-300.0,0.00019177,2]
[374561079,1753355431958,-300.0,0.00019177,2]
[374561080,1753355431968,-345.91732348,0.00019177,2]
[374561081,1753355431978,-460.0,0.00019178,2]
[374561082,1753355431987,-460.0,0.00019178,2]
[374561083,1753355431999,-460.0,0.00019178,2]
[374561084,1753355432010,-341.25414537,0.00019178,2]
[374561085,1753355432020,-460.0,0.00019178,2]
[374561086,1753355432029,-460.0,0.00019178,2]
[374561087,1753355432039,-460.0,0.00019178,2]
[374561088,1753355432049,-369.48173083,0.00019178,2]
[374561089,1753355432062,-90.51826917,0.00019178,2]
[374561090,1753355432071,-460.0,0.00019178,2]
[374561091,1753355432081,-261.36912487,0.00019178,2]
[374561092,1753355432091,-215.14403475,0.00019178,2]
[374561094,1753355432101,-460.0,0.00019178,2]
[374561095,1753355432110,-386.76076664,0.00019178,2]
[374561096,1753355432126,-73.23923336,0.00019178,2]
[374561097,1753355432136,-460.0,0.00019178,2]
[374561098,1753355432146,-460.0,0.00019178,2]
[374561099,1753355432155,-383.62028269,0.00019178,2]
[374561100,1753355432165,-460.0,0.00019178,2]
[374561101,1753355432175,-460.0,0.00019178,2]
[374561102,1753355432191,-460.0,0.00019178,2]
[374561103,1753355432200,-460.0,0.00019178,2]
[374561104,1753355432210,-460.0,0.00019178,2]
[374561105,1753355432219,-460.0,0.00019178,2]
[374561106,1753355432229,-460.0,0.00019178,2]
[374561107,1753355432239,-460.0,0.00019178,2]
[374561108,1753355432249,-460.0,0.00019178,2]
[374561109,1753355432259,-460.0,0.00019178,2]
[374561110,1753355432269,-460.0,0.00019178,2]
[374561111,1753355432279,-460.0,0.00019178,2]
[374561112,1753355432289,-2974.94,0.00019178,2]
[374561113,1753355432299,-533.01018085,0.00019178,2]
[374561114,1753355432308,-460.0,0.00019178,2]
[374561115,1753355432318,-460.0,0.00019178,2]
[374561116,1753355432327,-460.0,0.00019178,2]
[374561117,1753355432337,-460.0,0.00019178,2]
[374561118,1753355432347,-460.0,0.00019178,2]
[374561119,1753355432357,-460.0,0.00019178,2]
[374561120,1753355432366,-460.0,0.00019178,2]
[374561121,1753355432375,-422.85937636,0.00019178,2]
[374561122,1753355432386,-397.15545866,0.00019178,2]
[374561123,1753355432395,-460.0,0.00019178,2]
[374561124,1753355432409,-460.0,0.00019178,2]
[374561125,1753355432419,-224.4126355,0.00019178,2]
[374561126,1753355432428,-460.0,0.00019178,2]
[374561127,1753355432439,-460.0,0.00019178,2]
[374561128,1753355432448,-460.0,0.00019178,2]
[374561129,1753355432457,-460.0,0.00019178,2]
[374561130,1753355432468,-460.0,0.00019178,2]
[374561131,1753355432477,-460.0,0.00019178,2]
[374561132,1753355432486,-463.02392968,0.00019178,2]
[374561133,1753355432496,-460.0,0.00019178,2]
[374561134,1753355432506,-460.0,0.00019178,2]
[374561135,1753355432515,-460.0,0.00019178,2]
[374561136,1753355432524,-838.22,0.00019178,2]
[374561137,1753355432534,-466.04393836,0.00019178,2]
[374561138,1753355432546,-460.0,0.00019178,2]
[374561139,1753355432556,-460.0,0.00019178,2]
[374561140,1753355432565,-460.0,0.00019178,2]
[374561141,1753355432575,-474.08849572,0.00019178,2]
[374561142,1753355432584,-460.0,0.00019178,2]
[374561143,1753355432594,-480.75812644,0.00019178,2]
[374561144,1753355432603,-460.0,0.00019178,2]
[374561145,1753355432612,-460.0,0.00019178,2]
[374561146,1753355432622,-460.0,0.00019178,2]
[374561147,1753355432631,-460.0,0.00019178,2]
[374561148,1753355432644,-460.0,0.00019178,2]
[374561149,1753355432653,-460.0,0.00019178,2]
[374561150,1753355432663,-462.67480493,0.00019178,2]
[374561151,1753355432673,-460.0,0.00019178,2]
[374561152,1753355432683,-460.0,0.00019178,2]
[374561153,1753355432693,-460.0,0.00019178,2]
[374561154,1753355432702,-460.0,0.00019178,2]
[374561155,1753355432712,-460.0,0.00019178,2]
[374561156,1753355432721,-460.0,0.00019178,2]
[374561157,1753355432731,-460.0,0.00019178,2]
[374561158,1753355432742,-460.0,0.00019178,2]
[374561159,1753355432754,-460.0,0.00019178,2]
[374561160,1753355432763,-460.0,0.00019178,2]
[374561161,1753355432773,-460.0,0.00019178,2]
[374561162,1753355432784,-460.0,0.00019178,2]
[374561163,1753355432794,-460.0,0.00019178,2]
[374561164,1753355432803,-460.0,0.00019178,2]
[374561165,1753355432812,-460.0,0.00019178,2]
[374561166,1753355432823,-460.0,0.00019178,2]
[374561167,1753355432835,-460.0,0.00019178,2]
[374561168,1753355432844,-460.0,0.00019178,2]
[374561169,1753355432854,-460.0,0.00019178,2]
[374561170,1753355432864,-460.0,0.00019178,2]
[374561171,1753355432873,-460.0,0.00019178,2]
[374561172,1753355432883,-460.0,0.00019178,2]
[374561173,1753355432894,-460.0,0.00019178,2]
[374561174,1753355432904,-460.0,0.00019178,2]
[374561175,1753355432914,-460.0,0.00019178,2]
[374561176,1753355432924,-460.0,0.00019178,2]
[374561177,1753355432933,-460.0,0.00019178,2]
[374561178,1753355432944,-460.0,0.00019178,2]
[374561179,1753355432954,-460.0,0.00019178,2]
[374561180,1753355432964,-460.0,0.00019178,2]
[374561181,1753355432974,-460.0,0.00019178,2]
[374561182,1753355432984,-460.0,0.00019178,2]
[374561183,1753355432994,-462.44222379,0.00019178,2]
[374561184,1753355433004,-460.0,0.00019178,2]
[374561185,1753355433014,-1135.29,0.00019178,2]
[374561186,1753355433025,-460.0,0.00019178,2]
[374561187,1753355433036,-460.0,0.00019178,2]
[374561188,1753355433046,-460.0,0.00019178,2]
[374561189,1753355433056,-460.0,0.00019178,2]
[374561190,1753355433067,-376.503239,0.00019178,2]
[374561191,1753355433077,-460.0,0.00019178,2]
[374561192,1753355433087,-460.0,0.00019178,2]
[374561193,1753355433097,-460.0,0.00019178,2]
[374561194,1753355433106,-2559.0,0.00019178,2]
[374561195,1753355433116,-149.36641786,0.00019178,2]
[374561196,1753355433131,-85.14918188,0.00019178,2]
[374561197,1753355433143,-460.0,0.00019178,2]
[374561198,1753355433153,-460.0,0.00019178,2]
[374561199,1753355433163,-460.0,0.00019178,2]
[374561200,1753355433173,-460.0,0.00019178,2]
[374561201,1753355433183,-460.0,0.00019178,2]
[374561202,1753355433193,-460.0,0.00019178,2]
[374561203,1753355433203,-460.0,0.00019178,2]
[374561204,1753355433214,-460.0,0.00019178,2]
[374561205,1753355433223,-460.0,0.00019178,2]
[374561206,1753355433234,-460.0,0.00019178,2]
[374561207,1753355433244,-460.0,0.00019178,2]
[374561208,1753355433254,-202.03549895,0.00019178,2]
[374561209,1753355433263,-460.0,0.00019178,2]
[374561210,1753355433273,-460.0,0.00019178,2]
[374561211,1753355433283,-654.47,0.00019178,2]
[374561212,1753355433293,-313.9639571,0.00019178,2]
[374561213,1753355433303,-460.0,0.00019178,2]
[374561214,1753355433313,-460.0,0.00019178,2]
[374561215,1753355433323,-460.0,0.00019178,2]
[374561216,1753355433332,-460.0,0.00019178,2]
[374561217,1753355433343,-263.09915741,0.00019178,2]
[374561218,1753355433354,-460.0,0.00019178,2]
[374561219,1753355433364,-460.0,0.00019178,2]
[374561220,1753355433375,-460.0,0.00019178,2]
[374561221,1753355433385,-460.0,0.00019178,2]
[374561222,1753355433397,-460.0,0.00019178,2]
[374561223,1753355433409,-460.0,0.00019178,2]
[374561224,1753355433420,-764.33,0.00019178,2]
[374561225,1753355433430,-460.0,0.00019178,2]
[374561226,1753355433441,-465.76066162,0.00019178,2]
[374561227,1753355433452,-460.0,0.00019178,2]
[374561228,1753355433462,-460.0,0.00019178,2]
[374561229,1753355433473,-479.99,0.00019178,2]
[374561230,1753355433482,-460.0,0.00019178,2]
[374561231,1753355433493,-801.24,0.00019178,2]
[374561232,1753355433503,-460.0,0.00019178,2]
[374561233,1753355433513,-460.0,0.00019178,2]
[374561234,1753355433523,-460.0,0.00019178,2]
[374561235,1753355433533,-460.0,0.00019178,2]
[374561236,1753355433544,-162.59938581,0.00019178,2]
[374561237,1753355433554,-460.0,0.00019178,2]
[374561238,1753355433564,-460.0,0.00019178,2]
[374561239,1753355433574,-460.0,0.00019178,2]
[374561240,1753355433583,-460.0,0.00019178,2]
[374561241,1753355433594,-460.0,0.00019178,2]
[374561242,1753355433604,-460.0,0.00019178,2]
[374561243,1753355433614,-410.56461661,0.00019178,2]
[374561244,1753355433623,-460.0,0.00019178,2]
[374561245,1753355433633,-460.0,0.00019178,2]
[374561246,1753355433646,-460.0,0.00019178,2]
[374561247,1753355433657,-460.0,0.00019178,2]
[374561248,1753355433667,-460.0,0.00019178,2]
[374561249,1753355433677,-478.60210185,0.00019178,2]
[374561250,1753355433687,-460.0,0.00019178,2]
[374561251,1753355433698,-460.0,0.00019178,2]
[374561252,1753355433708,-329.18530784,0.00019178,2]
[374561253,1753355433718,-460.0,0.00019178,2]
[374561254,1753355433728,-460.0,0.00019178,2]
[374561255,1753355433738,-174.46970914,0.00019178,2]
[374561256,1753355433761,-583.1,0.00019178,2]
[374561257,1753355433772,-956.43,0.00019178,2]
[374561258,1753355433782,-460.0,0.00019178,2]
[374561259,1753355433794,-460.0,0.00019178,2]
[374561260,1753355433804,-460.0,0.00019178,2]
[374561261,1753355433815,-467.27767351,0.00019178,2]
[374561262,1753355433827,-460.0,0.00019178,2]
[374561263,1753355433838,-460.0,0.00019178,2]
[374561264,1753355433848,-460.0,0.00019178,2]
[374561265,1753355433859,-318.0767341,0.00019178,2]
[374561266,1753355433869,-460.0,0.00019178,2]
[374561267,1753355433879,-460.0,0.00019178,2]
[374561268,1753355433890,-472.45662599,0.00019178,2]
[374561269,1753355433900,-460.0,0.00019178,2]
[374561270,1753355433910,-460.0,0.00019178,2]
[374561271,1753355433921,-460.0,0.00019178,2]
[374561272,1753355433931,-460.0,0.00019178,2]
[374561273,1753355433941,-250.91187022,0.00019178,2]
[374561274,1753355433951,-460.0,0.00019178,2]
[374561275,1753355434171,-460.0,0.00019178,2]
[374561276,1753355434182,-460.0,0.00019178,2]
[374561277,1753355434192,-460.0,0.00019178,2]
[374561278,1753355434202,-460.0,0.00019178,2]
[374561279,1753355434212,-460.0,0.00019178,2]
[374561280,1753355434222,-460.0,0.00019178,2]
[374561281,1753355434231,-460.0,0.00019178,2]
[374561282,1753355434242,-460.0,0.00019178,2]
[374561283,1753355434251,-460.0,0.00019178,2]
[374561284,1753355434261,-460.0,0.00019178,2]
[374561285,1753355434271,-460.0,0.00019178,2]
[374561286,1753355434281,-500.0,0.00019178,2]
[374561287,1753355434290,-460.0,0.00019178,2]
[374561288,1753355434300,-1677.13,0.00019178,2]
[374561289,1753355434310,-2105.43,0.00019178,2]
[374561290,1753355434319,-460.0,0.00019178,2]
[374561291,1753355434330,-460.0,0.00019178,2]
[374561292,1753355434341,-460.0,0.00019178,2]
[374561293,1753355434351,-460.0,0.00019178,2]
[374561294,1753355434362,-1026.47,0.00019178,2]
[374561295,1753355434371,-460.0,0.00019178,2]
[374561296,1753355434381,-460.0,0.00019178,2]
[374561297,1753355434392,-889.81,0.00019178,2]
[374561298,1753355434401,-829.03,0.00019178,2]
[374561299,1753355434411,-460.0,0.00019178,2]
[374561300,1753355434421,-460.0,0.00019178,2]
[374561301,1753355434431,-354.97455592,0.00019178,2]
[374561302,1753355434441,-460.0,0.00019178,2]
[374561303,1753355434451,-460.0,0.00019178,2]
[374561304,1753355434461,-460.0,0.00019178,2]
[374561305,1753355434471,-460.0,0.00019178,2]
[374561306,1753355434481,-460.0,0.00019178,2]
[374561307,1753355434490,-460.0,0.00019178,2]
[374561308,1753355434501,-460.0,0.00019178,2]
[374561309,1753355434512,-250.6523242,0.00019178,2]
[374561310,1753355434523,-460.0,0.00019178,2]
[374561311,1753355434533,-460.0,0.00019178,2]
[374561312,1753355434544,-460.0,0.00019178,2]
[374561313,1753355434554,-460.0,0.00019178,2]
[374561314,1753355434564,-1934.21,0.00019178,2]
[374561315,1753355434574,-460.0,0.00019178,2]
[374561316,1753355434584,-460.0,0.00019178,2]
[374561317,1753355434593,-460.0,0.00019178,2]
[374561318,1753355434603,-460.0,0.00019178,2]
[374561319,1753355434613,-460.0,0.00019178,2]
[374561320,1753355434624,-460.0,0.00019178,2]
[374561321,1753355434635,-460.0,0.00019178,2]
[374561322,1753355434646,-2175.46,0.00019178,2]
[374561323,1753355434656,-460.0,0.00019178,2]
[374561324,1753355434666,-460.0,0.00019178,2]
[374561325,1753355434677,-460.0,0.00019178,2]
[374561326,1753355434687,-460.0,0.00019178,2]
[374561327,1753355434696,-460.0,0.00019178,2]
[374561328,1753355434706,-460.0,0.00019178,2]
[374561329,1753355434717,-460.0,0.00019178,2]
[374561330,1753355434727,-460.0,0.00019178,2]
[374561331,1753355434737,-460.33589477,0.00019178,2]
[374561332,1753355434754,-463.25031618,0.00019178,2]
[374561333,1753355434764,-460.0,0.00019178,2]
[374561334,1753355434774,-253.65759457,0.00019178,2]
[374561335,1753355434785,-500.0,0.00019178,2]